[Event "*** Titled Tuesday Blitz"]
[Site "Chess.com"]
[Date "2020.04.14"]
[Round "1"]
[White "nurgyulsalimova"]
[Black "albano87"]
[Result "1/2-1/2"]
[WhiteElo "2550"]
[BlackElo "2165"]
[TimeControl "180+1"]
[EndTime "10:09:41 PDT"]
[Termination "Game drawn by stalemate"]

1. d4 {[%clk 0:02:59.6]} 1... d5 {[%clk 0:02:54.3]} 2. Nf3 {[%clk 0:02:59.3]}
2... Nf6 {[%clk 0:02:53.6]} 3. g3 {[%clk 0:02:58.2]} 3... e6 {[%clk 0:02:53.7]}
4. Bg2 {[%clk 0:02:57.7]} 4... Be7 {[%clk 0:02:54.3]} 5. c4 {[%clk 0:02:56.7]}
5... O-O {[%clk 0:02:55]} 6. Nc3 {[%clk 0:02:56.7]} 6... c6 {[%clk 0:02:53.6]}
7. O-O {[%clk 0:02:53.7]} 7... b6 {[%clk 0:02:53.2]} 8. Ne5 {[%clk 0:02:26.8]}
8... Bb7 {[%clk 0:02:52.4]} 9. e4 {[%clk 0:02:23.5]} 9... dxe4 {[%clk
0:02:47.4]} 10. Nxe4 {[%clk 0:02:24.4]} 10... Qc8 {[%clk 0:02:14.3]} 11. Qe2
{[%clk 0:01:54.7]} 11... Nbd7 {[%clk 0:02:06.1]} 12. Bf4 {[%clk 0:01:38.4]}
12... c5 {[%clk 0:01:45.7]} 13. Nxd7 {[%clk 0:01:27.5]} 13... Qxd7 {[%clk
0:01:41.6]} 14. Nxf6+ {[%clk 0:01:22.3]} 14... Bxf6 {[%clk 0:01:37.9]} 15. Bxb7
{[%clk 0:01:17.3]} 15... Qxb7 {[%clk 0:01:38.8]} 16. dxc5 {[%clk 0:01:17.4]}
16... bxc5 {[%clk 0:01:38.8]} 17. Rab1 {[%clk 0:01:17.4]} 17... Rfd8 {[%clk
0:01:35.2]} 18. b3 {[%clk 0:01:17.2]} 18... Rd7 {[%clk 0:01:29.9]} 19. Rbd1
{[%clk 0:01:14.2]} 19... Rad8 {[%clk 0:01:27.9]} 20. Be3 {[%clk 0:01:10.8]}
20... Bd4 {[%clk 0:01:26.2]} 21. Bg5 {[%clk 0:01:10.7]} 21... Re8 {[%clk
0:01:18.9]} 22. Rd2 {[%clk 0:00:54.5]} 22... h6 {[%clk 0:01:17.8]} 23. Be3
{[%clk 0:00:53]} 23... Red8 {[%clk 0:01:17.1]} 24. Rfd1 {[%clk 0:00:52.8]} 24...
e5 {[%clk 0:00:57.5]} 25. Qg4 {[%clk 0:00:49.1]} 25... Qc6 {[%clk 0:00:41.5]}
26. h4 {[%clk 0:00:49]} 26... Kf8 {[%clk 0:00:32.8]} 27. Qf5 {[%clk 0:00:47.9]}
27... Qf6 {[%clk 0:00:20.5]} 28. Qxf6 {[%clk 0:00:44.5]} 28... gxf6 {[%clk
0:00:21.4]} 29. Bxh6+ {[%clk 0:00:44.8]} 29... Ke7 {[%clk 0:00:22.1]} 30. Kg2
{[%clk 0:00:41.6]} 30... Ke6 {[%clk 0:00:22.5]} 31. Kf3 {[%clk 0:00:40.5]} 31...
f5 {[%clk 0:00:22.9]} 32. Ke2 {[%clk 0:00:37.4]} 32... f6 {[%clk 0:00:23.1]} 33.
Be3 {[%clk 0:00:36.5]} 33... Rg7 {[%clk 0:00:18.5]} 34. a3 {[%clk 0:00:35.7]}
34... Rg4 {[%clk 0:00:17.9]} 35. b4 {[%clk 0:00:34.3]} 35... Rc8 {[%clk
0:00:08.4]} 36. bxc5 {[%clk 0:00:29.4]} 36... Bxe3 {[%clk 0:00:06.8]} 37. Rd6+
{[%clk 0:00:24]} 37... Kf7 {[%clk 0:00:06.3]} 38. Kxe3 {[%clk 0:00:22.8]} 38...
Rxc5 {[%clk 0:00:06.6]} 39. Rd7+ {[%clk 0:00:19.2]} 39... Kg6 {[%clk 0:00:06]}
40. Rxa7 {[%clk 0:00:19.3]} 40... Re4+ {[%clk 0:00:06.3]} 41. Kf3 {[%clk
0:00:19.2]} 41... Rd4 {[%clk 0:00:04.5]} 42. Rxd4 {[%clk 0:00:17.9]} 42... exd4
{[%clk 0:00:05.4]} 43. Rd7 {[%clk 0:00:14.9]} 43... Rxc4 {[%clk 0:00:05.2]} 44.
Kg2 {[%clk 0:00:13.5]} 44... Ra4 {[%clk 0:00:04.5]} 45. Rd5 {[%clk 0:00:12.9]}
45... Kf7 {[%clk 0:00:01.4]} 46. Rd6 {[%clk 0:00:12.5]} 46... Rxa3 {[%clk
0:00:02]} 47. Rxd4 {[%clk 0:00:12.7]} 47... Kg6 {[%clk 0:00:02.7]} 48. Rf4
{[%clk 0:00:12.8]} 48... Rb3 {[%clk 0:00:03.1]} 49. Rf3 {[%clk 0:00:13]} 49...
Rb4 {[%clk 0:00:02]} 50. Kh3 {[%clk 0:00:09.6]} 50... Rc4 {[%clk 0:00:02.5]} 51.
Rd3 {[%clk 0:00:09]} 51... Re4 {[%clk 0:00:02.3]} 52. Kg2 {[%clk 0:00:08.7]}
52... Rb4 {[%clk 0:00:02.9]} 53. Rd8 {[%clk 0:00:08.7]} 53... Rc4 {[%clk
0:00:03.5]} 54. Rg8+ {[%clk 0:00:09.2]} 54... Kh6 {[%clk 0:00:03.6]} 55. f3
{[%clk 0:00:07.9]} 55... Kh7 {[%clk 0:00:04.1]} 56. Rf8 {[%clk 0:00:07.8]} 56...
Kg6 {[%clk 0:00:04.7]} 57. Kh3 {[%clk 0:00:05.5]} 57... Rc3 {[%clk 0:00:05.1]}
58. Kg2 {[%clk 0:00:05.3]} 58... Rc2+ {[%clk 0:00:04.8]} 59. Kf1 {[%clk
0:00:05.2]} 59... Rc3 {[%clk 0:00:05.7]} 60. Ke2 {[%clk 0:00:05.6]} 60... Rc2+
{[%clk 0:00:06.3]} 61. Ke3 {[%clk 0:00:06.1]} 61... Rg2 {[%clk 0:00:06.9]} 62.
Kf4 {[%clk 0:00:05.9]} 62... Kg7 {[%clk 0:00:06.5]} 63. Ra8 {[%clk 0:00:05]}
63... Rg1 {[%clk 0:00:07.1]} 64. h5 {[%clk 0:00:03.9]} 64... Rh1 {[%clk
0:00:06.5]} 65. Ra7+ {[%clk 0:00:04.3]} 65... Kh6 {[%clk 0:00:06]} 66. Kxf5
{[%clk 0:00:04.9]} 66... Rxh5+ {[%clk 0:00:06]} 67. Kxf6 {[%clk 0:00:05.4]}
67... Rh3 {[%clk 0:00:06.7]} 68. Kf5 {[%clk 0:00:04.7]} 68... Rxg3 {[%clk
0:00:06]} 69. f4 {[%clk 0:00:05.3]} 69... Rg1 {[%clk 0:00:05.8]} 70. Rd7 {[%clk
0:00:04.5]} 70... Rb1 {[%clk 0:00:05.7]} 71. Rf7 {[%clk 0:00:03.6]} 71... Rb5+
{[%clk 0:00:04.6]} 72. Kg4 {[%clk 0:00:03]} 72... Rb6 {[%clk 0:00:05.1]} 73. Rd7
{[%clk 0:00:02.2]} 73... Rc6 {[%clk 0:00:05.1]} 74. Rd5 {[%clk 0:00:02.2]} 74...
Kg6 {[%clk 0:00:05.5]} 75. Rg5+ {[%clk 0:00:01.6]} 75... Kf6 {[%clk 0:00:05.8]}
76. Rh5 {[%clk 0:00:02.3]} 76... Kg6 {[%clk 0:00:06.3]} 77. f5+ {[%clk
0:00:02.1]} 77... Kg7 {[%clk 0:00:07.2]} 78. Kg5 {[%clk 0:00:02.3]} 78... Rd6
{[%clk 0:00:07]} 79. Rh3 {[%clk 0:00:02.5]} 79... Rc6 {[%clk 0:00:07.3]} 80. Ra3
{[%clk 0:00:02.8]} 80... Kf7 {[%clk 0:00:06.1]} 81. Ra7+ {[%clk 0:00:03.3]}
81... Kf8 {[%clk 0:00:06.7]} 82. Rh7 {[%clk 0:00:03.7]} 82... Kg8 {[%clk
0:00:06.7]} 83. Rh6 {[%clk 0:00:03.8]} 83... Rxh6 {[%clk 0:00:06.4]} 84. Kxh6
{[%clk 0:00:03.7]} 84... Kf7 {[%clk 0:00:07.3]} 85. Kg5 {[%clk 0:00:04.4]} 85...
Kg7 {[%clk 0:00:08.2]} 86. f6+ {[%clk 0:00:05]} 86... Kf7 {[%clk 0:00:08.8]} 87.
Kf5 {[%clk 0:00:05.9]} 87... Kf8 {[%clk 0:00:09.4]} 88. Kg6 {[%clk 0:00:06.8]}
88... Kg8 {[%clk 0:00:09.5]} 89. Kh6 {[%clk 0:00:07.4]} 89... Kf7 {[%clk
0:00:10]} 90. Kg5 {[%clk 0:00:08.3]} 90... Kf8 {[%clk 0:00:10.6]} 91. Kg6 {[%clk
0:00:08.7]} 91... Kg8 {[%clk 0:00:10.6]} 92. f7+ {[%clk 0:00:09.6]} 92... Kf8
{[%clk 0:00:10.8]} 93. Kf6 {[%clk 0:00:10.5]} 1/2-1/2

[Event "*** Titled Tuesday Blitz"]
[Site "Chess.com"]
[Date "2020.04.14"]
[Round "1"]
[White "RojonR"]
[Black "VojtechPlat"]
[Result "1-0"]
[WhiteElo "2406"]
[BlackElo "2732"]
[TimeControl "180+1"]
[EndTime "10:09:45 PDT"]
[Termination "RojonR won by resignation"]

1. e4 {[%clk 0:03:00.9]} 1... c5 {[%clk 0:02:59.4]} 2. Nf3 {[%clk 0:02:56.7]}
2... Nc6 {[%clk 0:02:58.6]} 3. Bb5 {[%clk 0:02:56.2]} 3... g6 {[%clk 0:02:57.9]}
4. Bxc6 {[%clk 0:02:55.9]} 4... dxc6 {[%clk 0:02:57.7]} 5. d3 {[%clk 0:02:55]}
5... Bg7 {[%clk 0:02:58]} 6. h3 {[%clk 0:02:53.5]} 6... Nf6 {[%clk 0:02:58.3]}
7. Be3 {[%clk 0:02:51.7]} 7... Nd7 {[%clk 0:02:57.5]} 8. Nc3 {[%clk 0:02:49.3]}
8... e5 {[%clk 0:02:57.9]} 9. Qd2 {[%clk 0:02:48.6]} 9... h6 {[%clk 0:02:56.9]}
10. Ne2 {[%clk 0:02:42.6]} 10... b6 {[%clk 0:02:55.5]} 11. g4 {[%clk 0:02:29.8]}
11... Nf8 {[%clk 0:02:54.5]} 12. Qc3 {[%clk 0:02:20.7]} 12... Qd6 {[%clk
0:02:19.3]} 13. Bf4 {[%clk 0:01:50.4]} 13... f6 {[%clk 0:02:18.3]} 14. Bg3
{[%clk 0:01:50.4]} 14... Ne6 {[%clk 0:02:18.1]} 15. Nd2 {[%clk 0:01:34.4]} 15...
g5 {[%clk 0:02:11.4]} 16. Nc4 {[%clk 0:01:32.7]} 16... Qe7 {[%clk 0:02:11.2]}
17. Ne3 {[%clk 0:01:27.6]} 17... Nd4 {[%clk 0:02:10.9]} 18. Nf5 {[%clk
0:01:04.1]} 18... Bxf5 {[%clk 0:02:09.8]} 19. gxf5 {[%clk 0:00:54.8]} 19...
O-O-O {[%clk 0:02:05.6]} 20. Nxd4 {[%clk 0:00:54]} 20... Rxd4 {[%clk 0:02:02]}
21. O-O-O {[%clk 0:00:51.2]} 21... Rhd8 {[%clk 0:01:52]} 22. f3 {[%clk
0:00:50.8]} 22... Qf7 {[%clk 0:01:50.9]} 23. b3 {[%clk 0:00:48]} 23... Kb7
{[%clk 0:01:49.3]} 24. Bf2 {[%clk 0:00:48]} 24... R4d7 {[%clk 0:01:48.6]} 25. h4
{[%clk 0:00:47.8]} 25... Rh8 {[%clk 0:01:23.9]} 26. hxg5 {[%clk 0:00:46.3]}
26... hxg5 {[%clk 0:01:23.7]} 27. Qc4 {[%clk 0:00:45.6]} 27... Qxc4 {[%clk
0:01:19.2]} 28. bxc4 {[%clk 0:00:46.5]} 28... Rdd8 {[%clk 0:01:18.5]} 29. Kd2
{[%clk 0:00:44.9]} 29... Kc7 {[%clk 0:01:15]} 30. Ke2 {[%clk 0:00:44.9]} 30...
Kd6 {[%clk 0:01:14.8]} 31. a4 {[%clk 0:00:44.7]} 31... Rxh1 {[%clk 0:01:09.5]}
32. Rxh1 {[%clk 0:00:43.6]} 32... Rh8 {[%clk 0:01:09.8]} 33. Rxh8 {[%clk
0:00:42.8]} 33... Bxh8 {[%clk 0:01:09.3]} 34. Kd2 {[%clk 0:00:30]} 34... Ke7
{[%clk 0:01:08.3]} 35. Ke2 {[%clk 0:00:29.9]} 35... Kf7 {[%clk 0:01:08]} 36. Kf1
{[%clk 0:00:29.6]} 36... Kg7 {[%clk 0:01:07.8]} 37. Kg2 {[%clk 0:00:29.9]} 37...
Kh6 {[%clk 0:01:07.8]} 38. Kh3 {[%clk 0:00:29.6]} 38... Kh5 {[%clk 0:01:08]} 39.
Be1 {[%clk 0:00:29.7]} 39... a6 {[%clk 0:01:05.3]} 40. Bf2 {[%clk 0:00:29.2]}
40... Bg7 {[%clk 0:01:03]} 41. Be1 {[%clk 0:00:20]} 41... Bf8 {[%clk 0:01:02.2]}
42. Bd2 {[%clk 0:00:18.3]} 42... b5 {[%clk 0:00:56.5]} 43. cxb5 {[%clk 0:00:18]}
43... cxb5 {[%clk 0:00:56.5]} 44. axb5 {[%clk 0:00:18.1]} 44... axb5 {[%clk
0:00:56.6]} 45. Be3 {[%clk 0:00:18.6]} 45... Kh6 {[%clk 0:00:50.4]} 46. Kg4
{[%clk 0:00:17.7]} 46... Kg7 {[%clk 0:00:50.4]} 47. Kh5 {[%clk 0:00:17.5]} 47...
Kf7 {[%clk 0:00:50.5]} 48. Bf2 {[%clk 0:00:16.8]} 48... c4 {[%clk 0:00:49.2]}
49. dxc4 {[%clk 0:00:16.7]} 49... bxc4 {[%clk 0:00:49.2]} 50. Bb6 {[%clk
0:00:16.8]} 50... Bb4 {[%clk 0:00:48.7]} 51. Bd8 {[%clk 0:00:16.4]} 51... Bd2
{[%clk 0:00:48.6]} 52. Kg4 {[%clk 0:00:16.4]} 52... Bf4 {[%clk 0:00:47.8]} 53.
Kh3 {[%clk 0:00:16.4]} 53... Be3 {[%clk 0:00:46.4]} 54. Kg2 {[%clk 0:00:16.3]}
54... Bc5 {[%clk 0:00:46]} 55. Kf1 {[%clk 0:00:15.6]} 55... Bf8 {[%clk
0:00:45.7]} 56. Ke2 {[%clk 0:00:15.6]} 56... Bc5 {[%clk 0:00:41.7]} 57. Kd2
{[%clk 0:00:15.5]} 57... Bd4 {[%clk 0:00:41.9]} 58. Kc1 {[%clk 0:00:15.7]} 58...
Bc3 {[%clk 0:00:41.4]} 59. Kb1 {[%clk 0:00:15.9]} 59... Kg7 {[%clk 0:00:40.9]}
60. Ka2 {[%clk 0:00:16]} 60... Bb4 {[%clk 0:00:41]} 61. Kb2 {[%clk 0:00:15.2]}
61... Kf7 {[%clk 0:00:40.8]} 62. Kc1 {[%clk 0:00:14.4]} 62... Bf8 {[%clk
0:00:38.3]} 63. Kd2 {[%clk 0:00:13.4]} 63... Bb4+ {[%clk 0:00:37.4]} 64. Kd1
{[%clk 0:00:13.4]} 64... Kg7 {[%clk 0:00:34.5]} 65. Kc1 {[%clk 0:00:13.3]} 65...
Bc3 {[%clk 0:00:25.7]} 66. Kb1 {[%clk 0:00:13.3]} 66... Kf7 {[%clk 0:00:21]} 67.
Kc1 {[%clk 0:00:11.5]} 67... Bb4 {[%clk 0:00:20.1]} 68. Kd1 {[%clk 0:00:11.6]}
68... Bc3 {[%clk 0:00:16.8]} 69. Ke2 {[%clk 0:00:11.8]} 69... Bd4 {[%clk
0:00:16.7]} 70. Kd2 {[%clk 0:00:12]} 70... Kg7 {[%clk 0:00:16.5]} 71. Ba5 {[%clk
0:00:10.3]} 71... Bc5 {[%clk 0:00:15.6]} 72. Kc3 {[%clk 0:00:08.2]} 72... Kh6
{[%clk 0:00:15.5]} 73. Kxc4 {[%clk 0:00:08.6]} 73... Be7 {[%clk 0:00:15.8]} 74.
Kd5 {[%clk 0:00:07.1]} 74... Kh5 {[%clk 0:00:15.8]} 75. Ke6 {[%clk 0:00:07.5]}
75... Bc5 {[%clk 0:00:15.2]} 76. Kxf6 {[%clk 0:00:07.6]} 76... Kh4 {[%clk
0:00:15.6]} 77. Kxe5 {[%clk 0:00:07.4]} 77... Kg3 {[%clk 0:00:15.8]} 78. Kd5
{[%clk 0:00:07.3]} 78... Bf8 {[%clk 0:00:14.3]} 79. e5 {[%clk 0:00:07.4]} 79...
Kxf3 {[%clk 0:00:14.5]} 80. e6 {[%clk 0:00:06.7]} 80... g4 {[%clk 0:00:14.6]}
81. Bc7 {[%clk 0:00:06.5]} 81... Be7 {[%clk 0:00:13.2]} 82. Be5 {[%clk
0:00:05.5]} 82... g3 {[%clk 0:00:12.2]} 83. Bxg3 {[%clk 0:00:05.5]} 83... Kxg3
{[%clk 0:00:12.3]} 84. Ke5 {[%clk 0:00:06.2]} 84... Kg4 {[%clk 0:00:12.5]} 85.
f6 {[%clk 0:00:06.8]} 85... Bb4 {[%clk 0:00:12.8]} 86. e7 {[%clk 0:00:07.2]} 1-0

[Event "*** Titled Tuesday Blitz"]
[Site "Chess.com"]
[Date "2020.04.14"]
[Round "1"]
[White "GMKrikor"]
[Black "VALPARAISO37"]
[Result "1-0"]
[WhiteElo "2707"]
[BlackElo "2357"]
[TimeControl "180+1"]
[EndTime "10:09:53 PDT"]
[Termination "GMKrikor won by checkmate"]

1. e4 {[%clk 0:03:00.9]} 1... e5 {[%clk 0:02:59.8]} 2. Nf3 {[%clk 0:02:53.9]}
2... Nc6 {[%clk 0:03:00]} 3. Bc4 {[%clk 0:01:28.7]} 3... Bc5 {[%clk 0:02:58.5]}
4. O-O {[%clk 0:01:25.3]} 4... Nf6 {[%clk 0:02:57.9]} 5. d3 {[%clk 0:01:23.4]}
5... d6 {[%clk 0:02:55.5]} 6. Re1 {[%clk 0:01:10.8]} 6... O-O {[%clk 0:02:53.2]}
7. a4 {[%clk 0:01:05.4]} 7... a6 {[%clk 0:02:52.7]} 8. c3 {[%clk 0:01:01.8]}
8... Ba7 {[%clk 0:02:52.1]} 9. h3 {[%clk 0:00:47.1]} 9... h6 {[%clk 0:02:42.4]}
10. Nbd2 {[%clk 0:00:39.6]} 10... Ne7 {[%clk 0:02:41.9]} 11. Nf1 {[%clk
0:00:38.2]} 11... Ng6 {[%clk 0:02:38.7]} 12. Be3 {[%clk 0:00:37.8]} 12... Be6
{[%clk 0:02:33.8]} 13. Bxe6 {[%clk 0:00:32.8]} 13... fxe6 {[%clk 0:02:33.4]} 14.
Bxa7 {[%clk 0:00:33.5]} 14... Rxa7 {[%clk 0:02:33.3]} 15. d4 {[%clk 0:00:34.4]}
15... exd4 {[%clk 0:02:32.8]} 16. Qxd4 {[%clk 0:00:29.2]} 16... Ra8 {[%clk
0:02:27.5]} 17. e5 {[%clk 0:00:29.2]} 17... dxe5 {[%clk 0:02:08.2]} 18. Qxd8
{[%clk 0:00:26.7]} 18... Raxd8 {[%clk 0:02:06.7]} 19. Nxe5 {[%clk 0:00:27.4]}
19... Nf4 {[%clk 0:02:02.8]} 20. Rad1 {[%clk 0:00:17.6]} 20... g5 {[%clk
0:01:49.6]} 21. Ne3 {[%clk 0:00:15.9]} 21... Kg7 {[%clk 0:01:45.4]} 22. Kh2
{[%clk 0:00:15.4]} 22... N6d5 {[%clk 0:01:38.8]} 23. Nxd5 {[%clk 0:00:12.1]}
23... exd5 {[%clk 0:01:32.6]} 24. g3 {[%clk 0:00:11.5]} 24... Nh5 {[%clk
0:01:16.9]} 25. Kg2 {[%clk 0:00:11.1]} 25... c6 {[%clk 0:01:16.2]} 26. Nd3
{[%clk 0:00:10.8]} 26... Rfe8 {[%clk 0:01:15.3]} 27. Nc5 {[%clk 0:00:10.8]}
27... Rxe1 {[%clk 0:01:09.5]} 28. Rxe1 {[%clk 0:00:10]} 28... Kf6 {[%clk
0:01:01.6]} 29. Re6+ {[%clk 0:00:07.1]} 29... Kf7 {[%clk 0:00:56.9]} 30. Rxh6
{[%clk 0:00:05.8]} 30... Ng7 {[%clk 0:00:56.8]} 31. Nxb7 {[%clk 0:00:04.2]}
31... Rb8 {[%clk 0:00:55.8]} 32. Nd6+ {[%clk 0:00:04.6]} 32... Kg8 {[%clk
0:00:55.7]} 33. Rg6 {[%clk 0:00:03.9]} 33... Kh7 {[%clk 0:00:55.1]} 34. Rxg5
{[%clk 0:00:03.6]} 34... Rxb2 {[%clk 0:00:55]} 35. Nf7 {[%clk 0:00:03.4]} 35...
Ne6 {[%clk 0:00:52.3]} 36. Re5 {[%clk 0:00:02.6]} 36... Nc5 {[%clk 0:00:49.8]}
37. c4 {[%clk 0:00:03.2]} 37... Nd3 {[%clk 0:00:48.8]} 38. Re7 {[%clk
0:00:03.4]} 38... Rxf2+ {[%clk 0:00:47.6]} 39. Kg1 {[%clk 0:00:04.1]} 39... Kg8
{[%clk 0:00:30.1]} 40. Ne5 {[%clk 0:00:02.7]} 40... Rd2 {[%clk 0:00:29.2]} 41.
Nxd3 {[%clk 0:00:02.2]} 41... Rxd3 {[%clk 0:00:29]} 42. cxd5 {[%clk 0:00:02.7]}
42... cxd5 {[%clk 0:00:29.4]} 43. Kg2 {[%clk 0:00:03.1]} 43... Ra3 {[%clk
0:00:29.1]} 44. h4 {[%clk 0:00:03.3]} 44... Rxa4 {[%clk 0:00:29.2]} 45. Rd7
{[%clk 0:00:03.8]} 45... d4 {[%clk 0:00:29]} 46. Kh3 {[%clk 0:00:04.3]} 46... d3
{[%clk 0:00:27.5]} 47. Rxd3 {[%clk 0:00:03.9]} 47... a5 {[%clk 0:00:27.5]} 48.
Rd7 {[%clk 0:00:03.8]} 48... Ra1 {[%clk 0:00:25.8]} 49. Ra7 {[%clk 0:00:04.7]}
49... a4 {[%clk 0:00:25.1]} 50. h5 {[%clk 0:00:05]} 50... a3 {[%clk 0:00:25.7]}
51. Kg4 {[%clk 0:00:04.9]} 51... a2 {[%clk 0:00:25.6]} 52. Ra6 {[%clk
0:00:03.1]} 52... Kg7 {[%clk 0:00:25.1]} 53. Ra7+ {[%clk 0:00:03.5]} 53... Kh6
{[%clk 0:00:24.9]} 54. Ra6+ {[%clk 0:00:04.1]} 54... Kh7 {[%clk 0:00:24.6]} 55.
Ra4 {[%clk 0:00:03.3]} 55... Kh6 {[%clk 0:00:24.5]} 56. Ra3 {[%clk 0:00:03.4]}
56... Kh7 {[%clk 0:00:22.6]} 57. Ra6 {[%clk 0:00:04]} 57... Kg7 {[%clk
0:00:22.2]} 58. Ra3 {[%clk 0:00:02.6]} 58... Kh6 {[%clk 0:00:22.3]} 59. Ra7
{[%clk 0:00:02.8]} 59... Rb1 {[%clk 0:00:16.5]} 60. Ra6+ {[%clk 0:00:03]} 60...
Kh7 {[%clk 0:00:14.1]} 61. Rxa2 {[%clk 0:00:03.7]} 61... Rb4+ {[%clk 0:00:13.3]}
62. Kg5 {[%clk 0:00:04.3]} 62... Rb5+ {[%clk 0:00:13.6]} 63. Kh4 {[%clk
0:00:04.8]} 63... Kg7 {[%clk 0:00:12.4]} 64. g4 {[%clk 0:00:05]} 64... Rb7
{[%clk 0:00:10.7]} 65. Ra6 {[%clk 0:00:04.9]} 65... Kh7 {[%clk 0:00:09.9]} 66.
Ra4 {[%clk 0:00:05.3]} 66... Rc7 {[%clk 0:00:10.2]} 67. Ra5 {[%clk 0:00:05.3]}
67... Re7 {[%clk 0:00:10.6]} 68. Kg5 {[%clk 0:00:05.6]} 68... Rg7+ {[%clk
0:00:10.4]} 69. Kf5 {[%clk 0:00:05.6]} 69... Rf7+ {[%clk 0:00:10.1]} 70. Kg5
{[%clk 0:00:06.3]} 70... Rg7+ {[%clk 0:00:10.2]} 71. Kh4 {[%clk 0:00:06.9]}
71... Rb7 {[%clk 0:00:10.6]} 72. Rf5 {[%clk 0:00:07.5]} 72... Kh6 {[%clk
0:00:10]} 73. Rf6+ {[%clk 0:00:07.5]} 73... Kg7 {[%clk 0:00:10.4]} 74. g5 {[%clk
0:00:08.1]} 74... Rb4+ {[%clk 0:00:09.9]} 75. Kg3 {[%clk 0:00:08.8]} 75... Rb3+
{[%clk 0:00:10.1]} 76. Kg4 {[%clk 0:00:09.4]} 76... Rb4+ {[%clk 0:00:10.3]} 77.
Rf4 {[%clk 0:00:10.1]} 77... Rb5 {[%clk 0:00:10.3]} 78. Re4 {[%clk 0:00:10]}
78... Rd5 {[%clk 0:00:09.6]} 79. Kf4 {[%clk 0:00:10.5]} 79... Kf7 {[%clk
0:00:09.6]} 80. Re5 {[%clk 0:00:11]} 80... Rd4+ {[%clk 0:00:10]} 81. Kf5 {[%clk
0:00:11.5]} 81... Rd1 {[%clk 0:00:10.8]} 82. g6+ {[%clk 0:00:10.9]} 82... Kg7
{[%clk 0:00:11.5]} 83. Re7+ {[%clk 0:00:11.2]} 83... Kg8 {[%clk 0:00:12.2]} 84.
Kg5 {[%clk 0:00:10.9]} 84... Rd5+ {[%clk 0:00:11.7]} 85. Kh6 {[%clk 0:00:10.2]}
85... Rf5 {[%clk 0:00:11.6]} 86. Re8+ {[%clk 0:00:09.7]} 86... Rf8 {[%clk
0:00:12.4]} 87. Rxf8+ {[%clk 0:00:09.9]} 87... Kxf8 {[%clk 0:00:13.2]} 88. Kh7
{[%clk 0:00:10.6]} 88... Ke7 {[%clk 0:00:13.8]} 89. g7 {[%clk 0:00:11.5]} 89...
Kf6 {[%clk 0:00:14.1]} 90. g8=Q {[%clk 0:00:12.4]} 90... Kf5 {[%clk 0:00:13.4]}
91. Qg6+ {[%clk 0:00:11.4]} 91... Kf4 {[%clk 0:00:13.6]} 92. Kg7 {[%clk
0:00:10.5]} 92... Ke5 {[%clk 0:00:13.4]} 93. h6 {[%clk 0:00:09.9]} 93... Kd5
{[%clk 0:00:14]} 94. Kf6 {[%clk 0:00:10.2]} 94... Kd4 {[%clk 0:00:13.4]} 95. h7
{[%clk 0:00:10.6]} 95... Kd5 {[%clk 0:00:12.8]} 96. h8=Q {[%clk 0:00:11.2]}
96... Kd4 {[%clk 0:00:12.4]} 97. Qh4+ {[%clk 0:00:11]} 97... Kd5 {[%clk
0:00:11.9]} 98. Qf5+ {[%clk 0:00:11.3]} 98... Kd6 {[%clk 0:00:11.9]} 99. Qd4+
{[%clk 0:00:11.3]} 99... Kc6 {[%clk 0:00:12.1]} 100. Qfc5+ {[%clk 0:00:11.7]}
100... Kb7 {[%clk 0:00:11]} 101. Qdb4+ {[%clk 0:00:12.3]} 101... Ka6 {[%clk
0:00:10.4]} 102. Qca5# {[%clk 0:00:12.4]} 1-0

[Event "*** Titled Tuesday Blitz"]
[Site "Chess.com"]
[Date "2020.04.14"]
[Round "2"]
[White "FannyDuarteNapoles"]
[Black "Vamostodorecto"]
[Result "0-1"]
[WhiteElo "2256"]
[BlackElo "2505"]
[TimeControl "180+1"]
[EndTime "10:11:06 PDT"]
[Termination "Vamostodorecto won by resignation"]

1. c4 {[%clk 0:03:00]} 1... e5 {[%clk 0:02:59.6]} 2. Nc3 {[%clk 0:03:00.9]} 2...
Nc6 {[%clk 0:02:59.7]} 3. Nf3 {[%clk 0:03:01.8]} 3... g6 {[%clk 0:02:59.2]} 4.
e3 {[%clk 0:03:02.7]} 4... Bg7 {[%clk 0:02:58.3]} 5. d4 {[%clk 0:03:03.6]} 5...
d6 {[%clk 0:02:57]} 6. dxe5 {[%clk 0:03:03.7]} 6... Nxe5 {[%clk 0:02:56.3]} 7.
Nxe5 {[%clk 0:03:03.7]} 7... Bxe5 {[%clk 0:02:57.2]} 8. Ke2 {[%clk 0:03:04.3]}
8... Ne7 {[%clk 0:02:52.5]} 9. f4 {[%clk 0:03:03.2]} 9... Bg7 {[%clk 0:02:51.8]}
10. Ke1 {[%clk 0:03:01.6]} 10... O-O {[%clk 0:02:49.2]} 11. Bd3 {[%clk
0:03:01.5]} 11... Nf5 {[%clk 0:02:47.5]} 12. e4 {[%clk 0:02:56.9]} 0-1

[Event "*** Titled Tuesday Blitz"]
[Site "Chess.com"]
[Date "2020.04.14"]
[Round "2"]
[White "Godzillator"]
[Black "zurzan"]
[Result "1-0"]
[WhiteElo "2371"]
[BlackElo "1943"]
[TimeControl "180+1"]
[EndTime "10:12:03 PDT"]
[Termination "Godzillator won by resignation"]

1. d4 {[%clk 0:03:00.9]} 1... d6 {[%clk 0:02:59.1]} 2. c4 {[%clk 0:03:01.2]}
2... f5 {[%clk 0:02:58.3]} 3. Nc3 {[%clk 0:03:01.5]} 3... Nf6 {[%clk 0:02:58.4]}
4. f3 {[%clk 0:02:59.8]} 4... g6 {[%clk 0:02:57.8]} 5. e4 {[%clk 0:02:59.8]}
5... fxe4 {[%clk 0:02:55.7]} 6. fxe4 {[%clk 0:02:59.7]} 6... Bg7 {[%clk
0:02:53.8]} 7. Nf3 {[%clk 0:02:59.9]} 7... O-O {[%clk 0:02:53.3]} 8. Be2 {[%clk
0:03:00.3]} 8... Nbd7 {[%clk 0:02:52]} 9. O-O {[%clk 0:03:00.2]} 9... e5 {[%clk
0:02:50.8]} 10. dxe5 {[%clk 0:02:56]} 10... Nxe5 {[%clk 0:02:49.2]} 11. Nxe5
{[%clk 0:02:55.8]} 11... dxe5 {[%clk 0:02:49.5]} 12. Qxd8 {[%clk 0:02:55.4]}
12... Rxd8 {[%clk 0:02:49.4]} 13. Bg5 {[%clk 0:02:54.8]} 13... c6 {[%clk
0:02:47.5]} 14. Bxf6 {[%clk 0:02:53.7]} 14... Bxf6 {[%clk 0:02:46.9]} 15. Rxf6
{[%clk 0:02:53.8]} 15... Rd2 {[%clk 0:02:47]} 16. Rd1 {[%clk 0:02:48.6]} 16...
Rxb2 {[%clk 0:02:44]} 17. Rd8+ {[%clk 0:02:48.4]} 17... Kg7 {[%clk 0:02:44.1]}
18. Rff8 {[%clk 0:02:47.7]} 18... Rc2 {[%clk 0:02:30.6]} 19. Rxc8 {[%clk
0:02:47.4]} 19... Rxc8 {[%clk 0:02:29.8]} 20. Rxc8 {[%clk 0:02:47.4]} 20... Rxc3
{[%clk 0:02:30.7]} 21. Rc7+ {[%clk 0:02:47.5]} 21... Kf6 {[%clk 0:02:29.4]} 22.
Rxb7 {[%clk 0:02:47.6]} 22... Rc1+ {[%clk 0:02:28.6]} 23. Kf2 {[%clk 0:02:47.7]}
23... Rc2 {[%clk 0:02:29.5]} 24. Rxa7 {[%clk 0:02:47.6]} 1-0

[Event "*** Titled Tuesday Blitz"]
[Site "Chess.com"]
[Date "2020.04.14"]
[Round "2"]
[White "renehp"]
[Black "pitopisback"]
[Result "1-0"]
[WhiteElo "2412"]
[BlackElo "2128"]
[TimeControl "180+1"]
[EndTime "10:12:05 PDT"]
[Termination "renehp won by resignation"]

1. e4 {[%clk 0:03:00]} 1... c5 {[%clk 0:02:59.6]} 2. Nf3 {[%clk 0:02:59.1]} 2...
d6 {[%clk 0:02:59.4]} 3. d4 {[%clk 0:02:58.9]} 3... cxd4 {[%clk 0:02:59.8]} 4.
Nxd4 {[%clk 0:02:59.1]} 4... Nf6 {[%clk 0:03:00.3]} 5. Nc3 {[%clk 0:02:58.7]}
5... a6 {[%clk 0:03:00.7]} 6. Be3 {[%clk 0:02:58.6]} 6... e5 {[%clk 0:02:58.7]}
7. Nb3 {[%clk 0:02:58.4]} 7... Be6 {[%clk 0:02:56.9]} 8. h3 {[%clk 0:02:57.5]}
8... h5 {[%clk 0:02:56.1]} 9. Qf3 {[%clk 0:02:57.5]} 9... Nbd7 {[%clk
0:02:52.7]} 10. O-O-O {[%clk 0:02:57.2]} 10... Rc8 {[%clk 0:02:51.6]} 11. Bd3
{[%clk 0:02:55.6]} 11... Rxc3 {[%clk 0:02:48.5]} 12. bxc3 {[%clk 0:02:55.4]}
12... Qc7 {[%clk 0:02:47.1]} 13. Bd2 {[%clk 0:02:49.5]} 13... Nb6 {[%clk
0:02:37.3]} 14. Bg5 {[%clk 0:02:38.4]} 14... Qxc3 {[%clk 0:02:24.5]} 15. Bb5+
{[%clk 0:02:36.8]} 1-0